bitfinex/quotes_SOLUSD_20240622
["timestamp","ask_amount","ask_price","bid_price","bid_amount"]
[1719084993720,6.46,134.44,134.42,100.0]
[1719084995205,6.46,134.45,134.42,100.0]
[1719084995609,6.46,134.45,134.44,100.0]
[1719084995814,6.46,134.46,134.44,100.0]
[1719084996014,6.46,134.46,134.41,107.4397]
[1719084996015,6.46,134.47,134.41,100.0]
[1719084996220,6.46,134.44,134.41,100.0]
[1719084996531,6.46,134.43,134.41,100.0]
[1719084997627,6.46,134.45,134.43,100.0]
[1719084999836,6.46,134.44,134.43,100.0]
[1719085001824,6.46,134.44,134.41,107.4399]
[1719085004419,7.7772,134.46,134.41,107.4399]
[1719085004603,6.46,134.44,134.41,107.4399]
[1719085008622,6.46,134.44,134.41,100.0]
[1719085008823,6.46,134.43,134.41,100.0]
[1719085009131,7.7773,134.46,134.41,100.0]
[1719085009425,6.46,134.44,134.41,100.0]
[1719085011913,7.7773,134.46,134.41,207.4399]
[1719085012118,14.2373,134.46,134.41,200.0]
[1719085012919,0.34,134.46,134.41,100.0]
[1719085013119,7.4384,134.44,134.41,100.0]
[1719085013426,13.8984,134.44,134.41,100.0]
[1719085014025,6.46,134.44,134.41,100.0]
[1719085015514,7.4379,134.45,134.41,200.0]
[1719085015515,13.8979,134.45,134.41,200.0]
[1719085015716,7.4379,134.45,134.41,200.0]
[1719085016027,14.2373,134.46,134.41,200.0]
[1719085017337,7.4377,134.45,134.41,200.0]
[1719085018940,7.4383,134.44,134.41,200.0]
[1719085019716,13.8983,134.44,134.41,100.0]
[1719085022233,7.4388,134.43,134.41,100.0]
[1719085022411,7.4388,134.43,134.39,6.0187]
[1719085022412,7.44,134.41,134.39,100.0]
[1719085022617,6.46,134.41,134.39,100.0]
[1719085023930,13.8995,134.42,134.39,100.0]
[1719085025011,6.46,134.41,134.39,100.0]
[1719085026408,7.439,134.43,134.39,100.0]
[1719085026614,6.46,134.41,134.39,100.0]
[1719085027740,0.17,134.42,134.39,100.0]
[1719085028033,6.46,134.41,134.39,100.0]
[1719085032038,6.46,134.44,134.39,100.0]
[1719085032235,0.17,134.43,134.39,100.0]
[1719085032539,6.63,134.43,134.39,100.0]
[1719085033439,0.17,134.43,134.39,100.0]
[1719085033740,0.17,134.43,134.39,107.4409]
[1719085033915,0.17,134.43,134.39,100.0]
[1719085034115,14.0682,134.44,134.41,100.0]
[1719085035165,13.8982,134.44,134.41,100.0]
[1719085035324,14.0677,134.45,134.41,100.0]
[1719085036743,7.6077,134.45,134.41,100.0]
[1719085037051,14.0677,134.45,134.41,100.0]
[1719085037924,7.6077,134.45,134.41,100.0]
[1719085038124,7.4382,134.44,134.41,100.0]
[1719085038747,7.6078,134.45,134.43,100.0]
[1719085040152,7.4378,134.45,134.43,100.0]
[1719085041520,6.63,134.46,134.41,100.0]
[1719085041521,13.8983,134.44,134.41,100.0]
[1719085041739,7.4383,134.44,134.41,100.0]
[1719085041916,7.4388,134.43,134.41,100.0]
[1719085042330,7.4388,134.43,134.39,128.516]
[1719085042847,7.4388,134.43,134.39,122.056]
[1719085043840,13.8983,134.44,134.41,100.0]
[1719085047648,7.4383,134.44,134.41,100.0]
[1719085047849,13.8983,134.44,134.41,100.0]
[1719085049759,0.17,134.46,134.39,100.0]
[1719085049760,6.46,134.42,134.39,100.0]
[1719085051950,6.46,134.41,134.39,100.0]
[1719085055867,6.46,134.41,134.37,107.4419]
[1719085063868,6.46,134.41,134.35,100.0]
[1719085063869,6.46,134.38,134.35,100.0]
[1719085064051,6.46,134.37,134.33,107.4442]
[1719085064254,6.46,134.37,134.33,100.0]
[1719085064453,6.46,134.36,134.33,100.0]
[1719085064870,6.46,134.36,134.33,107.4442]
[1719085067656,6.46,134.37,134.33,107.4442]
[1719085073987,6.46,134.37,134.33,100.0]
[1719085078170,13.9023,134.37,134.33,100.0]
[1719085078994,6.46,134.36,134.33,100.0]
[1719085079702,7.4423,134.37,134.33,100.0]
[1719085080004,6.46,134.36,134.33,100.0]
[1719085088586,7.4423,134.37,134.33,100.0]
[1719085088786,6.46,134.36,134.33,100.0]
[1719085089712,7.6117,134.38,134.35,100.0]
[1719085090000,6.46,134.37,134.35,100.0]
[1719085093104,7.635,134.38,134.33,100.0]
[1719085093410,6.46,134.35,134.33,100.0]
[1719085095378,7.613,134.36,134.33,100.0]
[1719085095685,6.63,134.36,134.33,100.0]
[1719085095896,6.46,134.36,134.33,100.0]
[1719085097008,14.9067,134.38,134.35,100.0]
[1719085097206,7.4417,134.38,134.35,100.0]
[1719085097409,14.9067,134.38,134.35,100.0]
[1719085097706,6.46,134.36,134.35,100.0]
[1719085103206,7.4422,134.37,134.35,100.0]
[1719085103413,13.9022,134.37,134.35,100.0]
[1719085105721,7.4422,134.37,134.35,100.0]
[1719085106495,7.4422,134.37,134.36,1.01704185]
[1719085107226,7.4417,134.38,134.37,100.0]
[1719085118732,13.9012,134.39,134.37,100.0]
[1719085118940,13.925,134.38,134.35,100.0]
[1719085119150,6.46,134.36,134.35,100.0]
[1719085119320,6.46,134.36,134.33,100.0]
[1719085119640,13.9036,134.35,134.33,100.0]
[1719085120538,6.46,134.35,134.33,100.0]
[1719085122012,13.9034,134.35,134.33,100.0]
[1719085124527,6.46,134.35,134.33,100.0]
[1719085127435,6.46,134.34,134.33,100.0]
[1719085129219,13.9042,134.34,134.31,100.0]
[1719085129456,6.46,134.32,134.31,100.0]
[1719085133830,6.46,134.33,134.31,100.0]
[1719085137621,23.3143,134.36,134.31,100.0]
[1719085137829,6.46,134.33,134.31,100.0]
[1719085141943,6.46,134.32,134.31,100.0]
[1719085142159,6.46,134.33,134.31,100.0]
[1719085142531,7.4421,134.37,134.34,100.0]
[1719085142732,6.46,134.35,134.34,100.0]
[1719085143250,6.46,134.35,134.32,100.0]
[1719085143559,6.46,134.34,134.32,100.0]
[1719085145256,6.46,134.33,134.3,100.0]
[1719085145424,6.46,134.32,134.3,100.0]
[1719085145629,6.46,134.33,134.3,100.0]
[1719085146851,6.46,134.32,134.3,100.0]
[1719085147652,6.46,134.32,134.3,107.4458]
[1719085148451,6.46,134.33,134.3,107.4458]
[1719085150560,6.46,134.33,134.31,7.4453]
[1719085150962,6.46,134.33,134.32,100.0]
[1719085151141,16.3783,134.36,134.32,107.4449]
[1719085151335,6.46,134.34,134.32,107.4449]
[1719085152041,6.46,134.34,134.32,100.0]
[1719085152848,6.46,134.34,134.32,107.4447]
[1719085153049,7.7821,134.37,134.34,100.0]
[1719085153360,6.46,134.35,134.32,100.0]
[1719085153657,6.46,134.34,134.32,100.0]
[1719085154039,6.46,134.33,134.32,100.0]
[1719085155736,6.46,134.34,134.32,100.0]
[1719085161866,6.46,134.35,134.32,100.0]
[1719085162039,6.46,134.34,134.32,100.0]
[1719085163863,6.46,134.35,134.32,100.0]
[1719085164275,13.9032,134.35,134.32,100.0]
[1719085167572,13.9032,134.35,134.34,100.0]
[1719085167573,6.46,134.35,134.34,100.0]
[1719085167862,13.9019,134.38,134.36,100.0]
[1719085168053,6.46,134.38,134.36,100.0]
[1719085173257,13.9016,134.38,134.36,100.0]
[1719085176661,7.4412,134.39,134.36,100.0]
[1719085176980,13.9012,134.39,134.36,100.0]
[1719085178369,7.4412,134.39,134.36,100.0]
[1719085181054,7.4412,134.39,134.38,100.0]
[1719085195191,14.8997,134.4,134.38,100.0]
[1719085198497,7.441,134.39,134.38,100.0]
[1719085201298,14.8996,134.4,134.38,100.0]
[1719085222208,6.49300471,134.41,134.4,100.0]
[1719085222397,34.9852,134.45,134.4,100.0]
[1719085222398,13.93140471,134.44,134.4,100.0]
[1719085222595,7.4384,134.44,134.4,100.0]
[1719085224829,7.4384,134.44,134.42,100.0]
[1719085228910,13.8977,134.45,134.42,100.0]
[1719085230425,13.8988,134.43,134.4,100.0]
[1719085232306,7.4388,134.43,134.4,100.0]
[1719085232607,13.8988,134.43,134.4,100.0]
[1719085234620,6.46,134.43,134.42,100.0]
[1719085237132,7.4379,134.45,134.42,100.0]
[1719085237133,6.46,134.44,134.42,100.0]
[1719085237622,7.4379,134.45,134.42,100.0]
[1719085237840,13.8979,134.45,134.42,100.0]
[1719085239712,7.459,134.47,134.44,100.0]
[1719085240034,13.919,134.47,134.44,100.0]
[1719085240813,7.4371,134.46,134.44,100.0]
[1719085243635,13.8971,134.46,134.44,100.0]
[1719085244049,7.4371,134.46,134.44,100.0]
[1719085245747,261.4371,134.46,134.44,100.0]
[1719085250247,7.4371,134.46,134.44,100.0]
[1719085254358,14.8958,134.47,134.44,100.0]
[1719085256057,254.0,134.46,134.44,100.0]
[1719085256360,14.8958,134.47,134.44,100.0]
[1719085261347,0.34,134.48,134.44,100.0]
[1719085261556,7.4372,134.46,134.42,106.46]
[1719085262665,7.6066,134.47,134.44,100.0]
[1719085265347,0.17,134.47,134.44,100.0]
[1719085265554,0.34,134.47,134.44,100.0]
[1719085266567,7.4373,134.46,134.42,100.0]
[1719085266867,7.7767,134.47,134.42,106.46]
[1719085267072,7.4373,134.46,134.42,100.0]
[1719085267362,14.2368,134.47,134.42,100.0]
[1719085267559,7.4372,134.46,134.42,106.46]
[1719085267759,7.7766,134.47,134.42,106.46]
[1719085268060,14.2366,134.47,134.42,106.46]
[1719085268267,7.7766,134.47,134.42,106.46]
[1719085268668,0.34,134.47,134.44,100.0]
[1719085269662,0.34,134.47,134.42,106.46]
[1719085269968,13.8988,134.43,134.38,120.339]
[1719085270469,6.46,134.43,134.4,100.0]
[1719085270677,14.2384,134.44,134.4,100.0]
[1719085271165,7.7784,134.44,134.4,100.0]
[1719085271342,0.34,134.44,134.4,100.0]
[1719085272254,0.34,134.44,134.4,106.46]
[1719085272463,0.34,134.44,134.4,100.0]
[1719085272963,7.7783,134.44,134.4,100.0]
[1719085275753,14.2383,134.44,134.4,100.0]
[1719085277580,7.7783,134.44,134.4,100.0]
[1719085277785,7.4391,134.43,134.4,100.0]
[1719085280480,13.8991,134.43,134.4,100.0]
[1719085284988,13.8994,134.42,134.4,100.0]
[1719085285293,13.8999,134.41,134.38,100.0]
[1719085286167,6.46,134.41,134.38,100.0]
[1719085294195,6.46,134.4,134.38,100.0]
[1719085304391,7.4417,134.38,134.36,100.0]
[1719085304710,6.46,134.37,134.36,100.0]
[1719085306089,6.46,134.37,134.34,100.0]
[1719085306297,6.46,134.36,134.34,100.0]
[1719085306687,6.46,134.35,134.34,100.0]
[1719085317709,7.459,134.38,134.34,100.0]
[1719085317906,6.46,134.35,134.34,100.0]
[1719085323424,6.46,134.36,134.34,100.0]
[1719085326530,0.17,134.37,134.34,100.0]
[1719085326707,6.46,134.35,134.34,100.0]
[1719085331515,7.459,134.38,134.34,100.0]
[1719085331721,15.7832,134.39,134.36,100.0]
[1719085331930,6.46,134.38,134.36,100.0]
[1719085332129,6.46,134.37,134.36,100.0]
[1719085333619,13.9021,134.37,134.36,100.0]
[1719085333811,21.3611,134.37,134.36,100.0]
[1719085334141,13.919,134.37,134.36,100.0]
[1719085338531,21.3611,134.37,134.36,100.0]
[1719085338741,21.5311,134.37,134.34,100.0]
[1719085339038,6.46,134.35,134.34,100.0]
[1719085345145,7.629,134.37,134.34,100.0]
[1719085345333,6.46,134.35,134.34,100.0]
[1719085360483,6.46,134.36,134.34,100.0]
[1719085365558,13.9027,134.36,134.34,100.0]
[1719085366875,6.46,134.36,134.34,100.0]
[1719085367080,0.17,134.39,134.36,100.0]
[1719085367388,6.46,134.37,134.36,100.0]
[1719085368472,13.9021,134.37,134.36,100.0]
[1719085373161,7.4421,134.37,134.36,100.0]
[1719085391024,7.611,134.4,134.38,100.0]
[1719085391170,13.9007,134.4,134.38,100.0]
[1719085393070,15.8255,134.46,134.4,100.0]
[1719085393273,6.46,134.43,134.4,100.0]
[1719085393802,13.899,134.43,134.4,100.0]
[1719085394299,6.46,134.42,134.4,100.0]
[1719085398097,6.46,134.43,134.42,100.0]
[1719085407003,13.8988,134.43,134.4,100.0]
[1719085407199,7.4388,134.43,134.4,100.0]
[1719085407399,6.46,134.41,134.4,100.0]
[1719085408100,6.46,134.41,134.38,100.0]
[1719085408282,6.46,134.4,134.38,100.0]
[1719085411613,6.46,134.42,134.4,100.0]
[1719085411798,15.2375,134.44,134.4,100.0]
[1719085411799,6.46,134.41,134.4,100.0]
[1719085412414,15.2375,134.44,134.4,100.0]
[1719085412704,6.46,134.41,134.4,100.0]
[1719085414087,6.46,134.41,134.38,100.0]
[1719085414407,6.46,134.4,134.38,100.0]
[1719085416111,6.46,134.39,134.38,100.0]
[1719085417508,6.46,134.39,134.36,100.0]
[1719085417815,6.46,134.38,134.36,100.0]
[1719085428421,6.46,134.37,134.36,100.0]
[1719085442037,7.4405,134.4,134.36,100.0]
[1719085442217,6.46,134.38,134.36,100.0]
[1719085444820,6.46,134.37,134.36,100.0]
[1719085448247,6.46,134.39,134.36,100.0]
[1719085450442,6.46,134.39,134.38,100.0]
[1719085453548,13.901,134.39,134.36,100.0]
[1719085453752,6.46,134.38,134.36,100.0]
[1719085454254,6.46,134.37,134.36,100.0]
[1719085456238,6.46,134.38,134.37,100.0]
[1719085457655,7.4406,134.4,134.37,100.0]
[1719085457859,6.46,134.38,134.37,100.0]
[1719085473390,6.46,134.39,134.37,100.0]
[1719085477606,7.4406,134.4,134.37,100.0]
[1719085477773,6.46,134.39,134.37,100.0]
[1719085484572,0.17,134.41,134.37,100.0]
[1719085484780,6.46,134.4,134.37,100.0]
[1719085484996,13.9005,134.4,134.37,100.0]
[1719085485209,6.46,134.39,134.37,100.0]
[1719085486303,7.4405,134.4,134.37,100.0]
[1719085486492,6.46,134.39,134.37,100.0]
[1719085489402,6.46,134.38,134.37,100.0]
[1719085492507,13.9012,134.39,134.37,100.0]
[1719085493889,6.46,134.39,134.37,100.0]
[1719085495406,0.34,134.41,134.37,100.0]
[1719085495723,6.46,134.41,134.39,100.0]
[1719085495885,18.11830055,134.43,134.39,100.0]
[1719085496082,6.46,134.41,134.39,100.0]
[1719085499230,7.4395,134.42,134.41,100.0]
[1719085499419,13.8995,134.42,134.41,100.0]
[1719085500531,7.4395,134.42,134.41,100.0]
[1719085500726,13.8995,134.42,134.41,100.0]
[1719085505116,6.46,134.42,134.41,100.0]
[1719085509208,13.8989,134.43,134.41,100.0]
[1719085509623,6.46,134.42,134.41,100.0]
[1719085509852,13.8993,134.42,134.41,100.0]
[1719085511212,6.46,134.42,134.41,100.0]
[1719085513408,6.46,134.43,134.41,100.0]
[1719085515331,6.46,134.43,134.41,200.0]
[1719085517909,6.46,134.43,134.41,100.0]
[1719085518115,13.8989,134.43,134.41,100.0]
[1719085518935,7.4389,134.43,134.41,100.0]
[1719085519141,13.8989,134.43,134.41,100.0]
[1719085520137,6.46,134.43,134.41,100.0]
[1719085520638,7.4384,134.44,134.43,100.0]
[1719085520815,6.46,134.44,134.43,100.0]
[1719085521311,7.4373,134.46,134.43,100.0]
[1719085521518,6.46,134.45,134.43,100.0]
[1719085522239,7.4373,134.46,134.43,100.0]
[1719085522419,6.46,134.45,134.43,100.0]
[1719085526339,13.8978,134.45,134.43,100.0]
[1719085527440,6.46,134.44,134.43,100.0]
[1719085529430,7.4378,134.45,134.43,100.0]
[1719085529637,6.46,134.44,134.43,100.0]
[1719085531139,7.4379,134.5,134.45,100.0]
[1719085531325,6.46,134.46,134.45,100.0]
[1719085531838,7.4351,134.5,134.48,100.0]
[1719085532042,6.46,134.49,134.48,100.0]
[1719085532420,7.4351,134.5,134.48,100.0]
[1719085532734,6.46,134.49,134.48,100.0]
[1719085533640,13.8954,134.49,134.48,100.0]
[1719085537145,7.4351,134.5,134.48,100.0]
[1719085537345,6.46,134.49,134.48,100.0]
[1719085546850,7.4349,134.5,134.48,100.0]
[1719085547155,6.46,134.49,134.48,100.0]
[1719085547667,7.4349,134.5,134.48,100.0]
[1719085547836,6.46,134.49,134.48,100.0]
[1719085550165,7.4349,134.5,134.48,100.0]
[1719085550463,6.46,134.49,134.48,100.0]
[1719085552665,7.4349,134.5,134.48,100.0]
[1719085552863,6.46,134.5,134.48,100.0]
[1719085554912,7.4345,134.51,134.48,100.0]
[1719085555170,6.46,134.5,134.48,100.0]
[1719085555867,13.8949,134.5,134.48,100.0]
[1719085557766,13.8954,134.49,134.48,100.0]
[1719085559571,6.46,134.49,134.48,100.0]
[1719085590381,6.46,134.49,134.45,6.6665]
[1719085590382,6.8,134.49,134.45,100.0]
[1719085590699,6.46,134.46,134.45,100.0]
[1719085591869,7.4356,134.49,134.47,100.0]
[1719085592069,6.46,134.48,134.47,100.0]
[1719085598475,13.896,134.48,134.47,100.0]
[1719085606791,7.4371,134.46,134.45,100.0]
[1719085606993,13.8971,134.46,134.45,100.0]
[1719085607789,6.46,134.46,134.45,100.0]
[1719085611306,7.4367,134.47,134.45,100.0]
[1719085611475,6.46,134.46,134.45,100.0]
[1719085618207,7.4367,134.47,134.45,100.0]
[1719085618509,6.46,134.46,134.45,100.0]
[1719085620214,6.46,134.47,134.46,100.0]
[1719085622992,6.46,134.47,134.43,100.0]
[1719085622993,7.4355,134.49,134.48,100.0]
[1719085623296,13.8955,134.49,134.48,100.0]
[1719085624212,6.46,134.49,134.48,100.0]
[1719085624394,7.4352,134.5,134.48,100.0]
[1719085624593,6.46,134.49,134.48,100.0]
[1719085626003,3.81133432,134.52,134.51,100.0]
[1719085626208,0.5932071,134.52,134.51,100.0]
[1719085640864,0.5932071,134.52,134.51,207.4343]
[1719085644856,0.5932071,134.52,134.51,200.0]
[1719085652145,0.5932071,134.52,134.51,100.0]
[1719085652454,7.0532071,134.52,134.51,100.0]
[1719085653261,14.4870071,134.52,134.51,100.0]
[1719085654993,7.0532071,134.52,134.51,100.0]
[1719085660887,0.5932071,134.52,134.51,100.0]
[1719085661799,7.0532071,134.52,134.51,100.0]
[1719085678488,14.4870071,134.52,134.51,100.0]
[1719085680622,8.0270071,134.52,134.51,100.0]
[1719085680800,14.4870071,134.52,134.51,100.0]
[1719085681834,0.5932071,134.52,134.51,100.0]
[1719085682994,14.4870071,134.52,134.51,100.0]
[1719085685693,7.0532071,134.52,134.51,100.0]
[1719085690532,14.4870071,134.52,134.51,100.0]
[1719085697317,7.0532071,134.52,134.51,100.0]
[1719085702616,14.4870071,134.52,134.51,100.0]
[1719085716444,7.0532071,134.52,134.51,100.0]
[1719085721452,0.5932071,134.52,134.51,100.0]
[1719085721746,7.0532071,134.52,134.51,100.0]
[1719085722534,14.4870071,134.52,134.51,100.0]
[1719085723548,8.0270071,134.52,134.51,100.0]
[1719085723724,14.4870071,134.52,134.51,100.0]
[1719085726044,14.4870071,134.52,134.49,100.0]
[1719085726251,6.46,134.5,134.49,100.0]
[1719085731166,8.0270071,134.52,134.51,100.0]
[1719085731328,14.4870071,134.52,134.51,100.0]
[1719085733755,14.4870071,134.52,134.49,100.0]
[1719085734144,6.46,134.5,134.49,100.0]
[1719085735243,8.0270071,134.52,134.49,100.0]
[1719085735430,8.0270071,134.52,134.51,100.0]
[1719085735639,14.4870071,134.52,134.51,100.0]
[1719085741361,7.0532071,134.52,134.51,100.0]
[1719085744649,14.4870071,134.52,134.51,100.0]
[1719085749768,0.5932071,134.52,134.51,100.0]
[1719085750144,7.0532071,134.52,134.51,100.0]
[1719085771207,0.5932071,134.52,134.51,100.0]
[1719085771377,7.0532071,134.52,134.51,100.0]
[1719085771582,14.4870071,134.52,134.51,100.0]
[1719085772500,7.0532071,134.52,134.51,100.0]
[1719085775610,7.0532071,134.52,134.48,100.0]
[1719085775809,0.5932071,134.52,134.48,100.0]
[1719085776105,6.46,134.51,134.5,100.0]
[1719085782622,0.5932071,134.52,134.5,100.0]
[1719085782839,6.46,134.51,134.5,100.0]
[1719085784733,13.8943,134.51,134.5,100.0]
[1719085784926,6.46,134.51,134.5,100.0]
[1719085786645,8.0271071,134.52,134.5,100.0]
[1719085786930,6.46,134.51,134.5,100.0]
[1719085788100,13.8943,134.51,134.5,100.0]
[1719085793107,6.46,134.51,134.5,100.0]
[1719085797350,8.0272071,134.52,134.5,100.0]
[1719085797540,6.46,134.51,134.5,100.0]
[1719085797845,13.8943,134.51,134.5,100.0]
[1719085805953,7.4351,134.5,134.48,100.0]
[1719085806140,13.8954,134.49,134.48,100.0]
[1719085807771,6.46,134.49,134.48,100.0]
[1719085809155,13.8954,134.49,134.48,100.0]
[1719085809356,7.4354,134.49,134.48,100.0]
[1719085809662,6.46,134.49,134.48,100.0]
[1719085810655,7.4351,134.5,134.48,100.0]
[1719085810863,6.46,134.49,134.48,100.0]
[1719085811356,13.8954,134.49,134.48,100.0]
[1719085811960,7.4354,134.49,134.48,100.0]
[1719085812160,13.8954,134.49,134.48,100.0]
[1719085812337,13.8954,134.49,134.45,100.0]
[1719085812338,26.46,134.49,134.45,100.0]
[1719085812536,13.8971,134.46,134.45,100.0]
[1719085813231,7.4379,134.45,134.43,100.0]
[1719085813547,6.46,134.44,134.43,100.0]
[1719085815231,13.8982,134.44,134.43,100.0]
[1719085816344,6.46,134.44,134.43,100.0]
[1719085818870,13.8982,134.44,134.43,100.0]
[1719085819240,21.3472,134.44,134.43,100.0]
[1719085822753,13.8982,134.44,134.43,100.0]
[1719085825292,7.4382,134.44,134.43,100.0]
[1719085825447,13.8982,134.44,134.43,100.0]
[1719085849024,7.4382,134.44,134.43,100.0]
[1719085849228,13.8982,134.44,134.43,100.0]
[1719085851533,7.4382,134.44,134.43,100.0]
[1719085851829,13.8982,134.44,134.43,100.0]
[1719085861644,7.4382,134.44,134.43,100.0]
[1719085861934,13.8982,134.44,134.43,100.0]
[1719085868246,7.4382,134.44,134.43,100.0]
[1719085868445,13.8982,134.44,134.43,100.0]
[1719085878241,7.4382,134.44,134.43,100.0]
[1719085878441,13.8982,134.44,134.43,100.0]
[1719085878663,7.4382,134.44,134.43,100.0]
[1719085878840,13.8982,134.44,134.43,100.0]
[1719085880644,7.4366,134.47,134.45,100.0]
[1719085880847,7.4361,134.48,134.47,100.0]
[1719085881055,13.8961,134.48,134.47,100.0]
[1719085887459,7.4349,134.5,134.49,100.0]
[1719085887648,13.8949,134.5,134.49,100.0]
[1719085887847,6.46,134.5,134.49,100.0]
[1719085888042,13.8949,134.5,134.49,100.0]
[1719085891285,0.5932071,134.52,134.51,100.0]
[1719085891458,7.0532071,134.52,134.51,100.0]
[1719085894171,14.4870071,134.52,134.51,100.0]
[1719085898381,8.0270071,134.52,134.51,100.0]
[1719085898559,7.0532071,134.52,134.51,100.0]
[1719085898957,0.5932071,134.52,134.51,100.0]
[1719085899362,7.0532071,134.52,134.51,100.0]
[1719085902775,0.5932071,134.52,134.51,100.0]
[1719085903075,7.0532071,134.52,134.51,100.0]
[1719085905679,0.5932071,134.52,134.51,100.0]
[1719085905898,7.0532071,134.52,134.51,100.0]
[1719085907285,0.5932071,134.52,134.51,100.0]
[1719085912192,7.0532071,134.52,134.51,100.0]
[1719085912892,0.5932071,134.52,134.51,100.0]
[1719085913096,7.0532071,134.52,134.51,100.0]
[1719085913387,0.5932071,134.52,134.51,100.0]
[1719085923306,0.5932071,134.52,134.51,100.0]
[1719085923792,14.4870071,134.52,134.51,100.0]
[1719085925377,7.0532071,134.52,134.51,100.0]
[1719085926901,0.5932071,134.52,134.51,100.0]
[1719085927077,7.0532071,134.52,134.51,100.0]
[1719085929502,0.5932071,134.52,134.51,100.0]
[1719085929705,7.0532071,134.52,134.51,100.0]
[1719085933604,0.5932071,134.52,134.51,100.0]
[1719085935388,7.0532071,134.52,134.51,100.0]
[1719085939014,0.5932071,134.52,134.51,100.0]
[1719085941202,0.5932071,134.52,134.51,107.4343]
[1719085941519,0.5932071,134.52,134.51,100.0]
[1719085944037,0.5932071,134.52,134.51,207.4343]
[1719085944251,0.5932071,134.52,134.51,213.8943]
[1719085944405,0.5932071,134.52,134.51,214.2343]
[1719085954535,0.5932071,134.52,134.51,213.8943]
[1719085955532,0.5932071,134.52,134.51,207.4343]
[1719085956417,0.5932071,134.52,134.51,213.8943]
[1719085959950,0.5932071,134.52,134.51,207.4343]
[1719085960543,0.5932071,134.52,134.51,213.8943]
[1719085974532,0.5932071,134.52,134.51,214.2343]
[1719085983265,0.5932071,134.52,134.51,206.8]
[1719085983443,0.5932071,134.52,134.51,200.0]
[1719085987965,0.5932071,134.52,134.51,206.46]
[1719085988169,0.5932071,134.52,134.51,213.8943]
[1719085988774,0.5932071,134.52,134.51,206.46]
[1719085990077,0.5932071,134.52,134.51,213.8943]
[1719085995385,0.5932071,134.52,134.51,206.46]
[1719086000379,0.5932071,134.52,134.51,213.8943]
[1719086000575,0.5932071,134.52,134.51,255.6053]
[1719086000781,15.7067,134.59,134.58,100.0]
[1719086005365,6.46,134.61,134.6,100.0]
[1719086010470,30.1266,134.62,134.6,100.0]